[Event "Early-Titled-Tuesday-Blitz-March-05-2024"]
[Site "Chess.com"]
[Date "2024.03.05"]
[Round "11"]
[White "UK_23"]
[Black "Ralf61"]
[Result "0-1"]
[WhiteElo "2350"]
[BlackElo "2537"]
[TimeControl "180+1"]
[EndTime "10:08:57 PST"]
[Termination "Ralf61 won by resignation"]

1. d4 {[%clk 0:02:53.2]} 1... Nf6 {[%clk 0:02:58.6]} 2. Nf3 {[%clk 0:02:53.4]}
2... e6 {[%clk 0:02:57.8]} 3. g3 {[%clk 0:02:52.6]} 3... b5 {[%clk 0:02:56.3]}
4. Bg2 {[%clk 0:02:52.7]} 4... Bb7 {[%clk 0:02:56.3]} 5. O-O {[%clk 0:02:53]}
5... c5 {[%clk 0:02:55.1]} 6. a4 {[%clk 0:02:50.1]} 6... b4 {[%clk 0:02:53.3]}
7. Nbd2 {[%clk 0:02:48]} 7... cxd4 {[%clk 0:02:50.6]} 8. Nxd4 {[%clk 0:02:47.7]}
8... Bxg2 {[%clk 0:02:49.6]} 9. Kxg2 {[%clk 0:02:48.6]} 9... Qb6 {[%clk
0:02:48.6]} 10. e3 {[%clk 0:02:47.3]} 10... Qb7+ {[%clk 0:02:43.1]} 11. Qf3
{[%clk 0:02:41.9]} 11... d5 {[%clk 0:02:41.7]} 12. Re1 {[%clk 0:02:26]} 12...
Nbd7 {[%clk 0:02:33.5]} 13. e4 {[%clk 0:02:22.7]} 13... Ne5 {[%clk 0:02:00.2]}
14. Qe2 {[%clk 0:02:18.4]} 14... dxe4 {[%clk 0:01:57.1]} 15. Nxe4 {[%clk
0:02:16.5]} 15... Be7 {[%clk 0:01:50.5]} 16. Bf4 {[%clk 0:02:00.3]} 16... Ng6
{[%clk 0:01:42.9]} 17. Qb5+ {[%clk 0:01:50]} 17... Qxb5 {[%clk 0:01:40.1]} 18.
Nxb5 {[%clk 0:01:50.6]} 18... Nxf4+ {[%clk 0:01:39.6]} 19. gxf4 {[%clk
0:01:51.3]} 19... O-O {[%clk 0:01:36.8]} 20. Rad1 {[%clk 0:01:41.8]} 20... Rfc8
{[%clk 0:01:30.7]} 21. c3 {[%clk 0:01:35.3]} 21... Nxe4 {[%clk 0:01:19.8]} 22.
Rxe4 {[%clk 0:01:34.4]} 22... a6 {[%clk 0:01:19.6]} 23. Nd6 {[%clk 0:01:25.7]}
23... Bxd6 {[%clk 0:01:19.5]} 24. Rxd6 {[%clk 0:01:26.2]} 24... bxc3 {[%clk
0:01:19.5]} 25. bxc3 {[%clk 0:01:26.6]} 25... Rxc3 {[%clk 0:01:19.1]} 26. Red4
{[%clk 0:01:24.9]} 26... g6 {[%clk 0:01:17.8]} 27. Rd8+ {[%clk 0:01:22.1]} 27...
Rxd8 {[%clk 0:01:17]} 28. Rxd8+ {[%clk 0:01:23]} 28... Kg7 {[%clk 0:01:16.5]}
29. Rd6 {[%clk 0:01:23]} 29... a5 {[%clk 0:01:11.8]} 30. Ra6 {[%clk 0:01:21]}
30... Rc5 {[%clk 0:01:09.5]} 31. Kf3 {[%clk 0:01:20.9]} 31... Kf6 {[%clk
0:01:09.1]} 32. Ra7 {[%clk 0:01:19.9]} 32... h6 {[%clk 0:01:05.4]} 33. h4 {[%clk
0:01:20.3]} 33... Rc3+ {[%clk 0:01:02.4]} 34. Kg2 {[%clk 0:01:19.1]} 34... Rc4
{[%clk 0:00:58.6]} 35. Rxa5 {[%clk 0:01:17.3]} 35... Rxf4 {[%clk 0:00:58]} 36.
Kg3 {[%clk 0:01:18]} 36... Rc4 {[%clk 0:00:55.4]} 37. Ra7 {[%clk 0:01:18.5]}
37... h5 {[%clk 0:00:51.9]} 38. a5 {[%clk 0:01:18.3]} 38... Rg4+ {[%clk
0:00:48.8]} 39. Kh3 {[%clk 0:01:18.3]} 39... e5 {[%clk 0:00:48.7]} 40. f3 {[%clk
0:01:18.2]} 40... Ra4 {[%clk 0:00:47.4]} 41. Kg3 {[%clk 0:01:16.2]} 41... Ke6
{[%clk 0:00:46.9]} 42. a6 {[%clk 0:01:12]} 42... f6 {[%clk 0:00:46]} 43. Ra8
{[%clk 0:01:12.4]} 43... Kf5 {[%clk 0:00:42]} 44. Ra7 {[%clk 0:01:08.7]} 44...
Ra3 {[%clk 0:00:39.6]} 45. Kg2 {[%clk 0:01:07.9]} 45... Kf4 {[%clk 0:00:37.8]}
46. Rg7 {[%clk 0:01:00.3]} 46... Rxa6 {[%clk 0:00:34.6]} 47. Rxg6 {[%clk
0:01:00.8]} 47... Ra2+ {[%clk 0:00:33.8]} 48. Kf1 {[%clk 0:01:00.5]} 48... f5
{[%clk 0:00:33.1]} 49. Rg5 {[%clk 0:00:59.6]} 49... Ra3 {[%clk 0:00:31.1]} 50.
Rxh5 {[%clk 0:00:58.9]} 50... Rxf3+ {[%clk 0:00:30.3]} 51. Kg2 {[%clk
0:00:59.8]} 51... Rg3+ {[%clk 0:00:29.7]} 52. Kf2 {[%clk 0:01:00.4]} 52... Rg4
{[%clk 0:00:27.3]} 53. Rh8 {[%clk 0:00:59.4]} 53... e4 {[%clk 0:00:27.4]} 54. h5
{[%clk 0:01:00.1]} 54... e3+ {[%clk 0:00:27.2]} 55. Ke2 {[%clk 0:01:00.1]} 55...
Rg2+ {[%clk 0:00:26.9]} 56. Ke1 {[%clk 0:01:00.7]} 56... Kf3 {[%clk 0:00:25.9]}
0-1

[Event "Early-Titled-Tuesday-Blitz-March-05-2024"]
[Site "Chess.com"]
[Date "2024.03.05"]
[Round "11"]
[White "wannabe2700"]
[Black "Iball95"]
[Result "1-0"]
[WhiteElo "2796"]
[BlackElo "2894"]
[TimeControl "180+1"]
[EndTime "10:08:58 PST"]
[Termination "wannabe2700 won by checkmate"]

1. b3 {[%clk 0:03:00.9]} 1... d5 {[%clk 0:02:57.7]} 2. Bb2 {[%clk 0:03:01.8]}
2... Nf6 {[%clk 0:02:58]} 3. Nf3 {[%clk 0:03:01]} 3... e6 {[%clk 0:02:58.2]} 4.
g3 {[%clk 0:03:00.3]} 4... Be7 {[%clk 0:02:58.7]} 5. Bg2 {[%clk 0:03:01]} 5...
O-O {[%clk 0:02:58.8]} 6. O-O {[%clk 0:03:01.6]} 6... c5 {[%clk 0:02:59.4]} 7.
c4 {[%clk 0:02:57.8]} 7... Nc6 {[%clk 0:02:59]} 8. cxd5 {[%clk 0:02:57.7]} 8...
exd5 {[%clk 0:02:59.9]} 9. d4 {[%clk 0:02:58.3]} 9... Ne4 {[%clk 0:03:00.5]} 10.
dxc5 {[%clk 0:02:36.2]} 10... Bxc5 {[%clk 0:03:01.4]} 11. Nc3 {[%clk 0:02:33.1]}
11... Nxc3 {[%clk 0:03:01.8]} 12. Bxc3 {[%clk 0:02:33.2]} 12... d4 {[%clk
0:03:02.5]} 13. Bb2 {[%clk 0:02:32.3]} 13... Re8 {[%clk 0:03:01.1]} 14. Rc1
{[%clk 0:02:31.9]} 14... Bb6 {[%clk 0:03:01.2]} 15. Qd2 {[%clk 0:02:16.5]} 15...
Bg4 {[%clk 0:02:59.9]} 16. h3 {[%clk 0:02:14.8]} 16... Bh5 {[%clk 0:02:59.4]}
17. Rfd1 {[%clk 0:02:07.7]} 17... Qe7 {[%clk 0:02:55.8]} 18. g4 {[%clk 0:02:04]}
18... Bg6 {[%clk 0:02:47.2]} 19. Nxd4 {[%clk 0:02:04.3]} 19... Nxd4 {[%clk
0:02:47.9]} 20. Bxd4 {[%clk 0:02:04.3]} 20... Rad8 {[%clk 0:02:48.6]} 21. e3
{[%clk 0:02:03.6]} 21... h5 {[%clk 0:02:49.2]} 22. Qc3 {[%clk 0:01:49.5]} 22...
hxg4 {[%clk 0:02:46.5]} 23. hxg4 {[%clk 0:01:49.2]} 23... Qg5 {[%clk 0:02:34.7]}
24. Bxg7 {[%clk 0:01:30.2]} 24... Qxg4 {[%clk 0:02:29.3]} 25. Rxd8 {[%clk
0:01:29.3]} 25... Rxd8 {[%clk 0:02:27.9]} 26. Be5 {[%clk 0:00:52.9]} 26... Re8
{[%clk 0:01:49.4]} 27. Bf4 {[%clk 0:00:42.5]} 27... Bf5 {[%clk 0:01:08.5]} 28.
Qf6 {[%clk 0:00:36.8]} 28... Bd8 {[%clk 0:00:58.2]} 29. Qh6 {[%clk 0:00:31.2]}
29... Re6 {[%clk 0:00:58.7]} 30. Qh2 {[%clk 0:00:29.6]} 30... Rg6 {[%clk
0:00:55.8]} 31. Bg3 {[%clk 0:00:15.9]} 31... Qe2 {[%clk 0:00:47.5]} 32. Bf1
{[%clk 0:00:15.5]} 32... Qxa2 {[%clk 0:00:38.2]} 33. Rc5 {[%clk 0:00:15.9]}
33... Qb1 {[%clk 0:00:34.1]} 34. Qh5 {[%clk 0:00:13.2]} 34... Bd3 {[%clk
0:00:29.3]} 35. Qh3 {[%clk 0:00:13.4]} 35... Bb6 {[%clk 0:00:24]} 36. Rc8+
{[%clk 0:00:13.3]} 36... Kg7 {[%clk 0:00:22.8]} 37. Qh8# {[%clk 0:00:12.9]} 1-0

[Event "Early-Titled-Tuesday-Blitz-March-05-2024"]
[Site "Chess.com"]
[Date "2024.03.05"]
[Round "11"]
[White "francyIM"]
[Black "carlocapau"]
[Result "1-0"]
[WhiteElo "2774"]
[BlackElo "2485"]
[TimeControl "180+1"]
[EndTime "10:08:59 PST"]
[Termination "francyIM won by checkmate"]

1. e4 {[%clk 0:03:00.9]} 1... c5 {[%clk 0:02:59.9]} 2. Nf3 {[%clk 0:02:58.2]}
2... Nc6 {[%clk 0:02:59.9]} 3. c3 {[%clk 0:02:53]} 3... Nf6 {[%clk 0:02:55.4]}
4. e5 {[%clk 0:02:44.4]} 4... Nd5 {[%clk 0:02:55.3]} 5. d4 {[%clk 0:02:45.3]}
5... cxd4 {[%clk 0:02:53.7]} 6. cxd4 {[%clk 0:02:43.8]} 6... d6 {[%clk
0:02:51.6]} 7. Bc4 {[%clk 0:02:40.6]} 7... e6 {[%clk 0:02:45.7]} 8. O-O {[%clk
0:02:39.6]} 8... Nb6 {[%clk 0:02:39.2]} 9. Bb5 {[%clk 0:02:34.7]} 9... Be7
{[%clk 0:02:30.2]} 10. Qe2 {[%clk 0:02:33]} 10... O-O {[%clk 0:02:26.6]} 11. Rd1
{[%clk 0:02:32.7]} 11... d5 {[%clk 0:02:22.7]} 12. Nc3 {[%clk 0:02:32.2]} 12...
Bd7 {[%clk 0:02:11.4]} 13. h4 {[%clk 0:02:31.4]} 13... Nc4 {[%clk 0:02:05.4]}
14. g3 {[%clk 0:02:28.6]} 14... N6a5 {[%clk 0:01:50.4]} 15. Bxd7 {[%clk
0:02:23.5]} 15... Qxd7 {[%clk 0:01:50.7]} 16. b3 {[%clk 0:02:22.9]} 16... Nb6
{[%clk 0:01:48.2]} 17. Bd2 {[%clk 0:02:21.9]} 17... Nc6 {[%clk 0:01:46.1]} 18.
Kg2 {[%clk 0:02:22]} 18... a5 {[%clk 0:01:43.7]} 19. Bg5 {[%clk 0:02:20.4]}
19... Ba3 {[%clk 0:01:40.9]} 20. Nb5 {[%clk 0:02:14.2]} 20... Bb4 {[%clk
0:01:31.8]} 21. a3 {[%clk 0:02:14.1]} 21... Be7 {[%clk 0:01:31.7]} 22. Bxe7
{[%clk 0:02:14.3]} 22... Qxe7 {[%clk 0:01:32.6]} 23. Nd6 {[%clk 0:02:11.9]}
23... f6 {[%clk 0:01:31.2]} 24. Nb5 {[%clk 0:01:57.2]} 24... fxe5 {[%clk
0:01:26.9]} 25. Nxe5 {[%clk 0:01:58.1]} 25... Nd7 {[%clk 0:01:20.3]} 26. Nxc6
{[%clk 0:01:51.9]} 26... bxc6 {[%clk 0:01:21.2]} 27. Nc7 {[%clk 0:01:52.8]}
27... Rab8 {[%clk 0:01:16.5]} 28. Rd3 {[%clk 0:01:45]} 28... e5 {[%clk
0:01:11.9]} 29. dxe5 {[%clk 0:01:42.5]} 29... Qxe5 {[%clk 0:01:10.8]} 30. Qxe5
{[%clk 0:01:39.2]} 30... Nxe5 {[%clk 0:01:11.7]} 31. Re3 {[%clk 0:01:39.5]}
31... Ng4 {[%clk 0:01:10.8]} 32. Rf3 {[%clk 0:01:38.6]} 32... Rxf3 {[%clk
0:01:08.8]} 33. Kxf3 {[%clk 0:01:39.5]} 33... h5 {[%clk 0:01:09.2]} 34. Rc1
{[%clk 0:01:30.7]} 34... Rxb3+ {[%clk 0:01:02.7]} 35. Kf4 {[%clk 0:01:28.4]}
35... Rb6 {[%clk 0:00:48.5]} 36. f3 {[%clk 0:01:25.4]} 36... Nf6 {[%clk
0:00:47.5]} 37. Kf5 {[%clk 0:01:24.1]} 37... Kf7 {[%clk 0:00:47.3]} 38. Ne6
{[%clk 0:01:23.6]} 38... g6+ {[%clk 0:00:46.6]} 39. Ke5 {[%clk 0:01:22.8]} 39...
Nd7+ {[%clk 0:00:42.9]} 40. Kd6 {[%clk 0:01:22.6]} 40... Nf8 {[%clk 0:00:31]}
41. Nd8+ {[%clk 0:01:19.7]} 41... Kg7 {[%clk 0:00:30.3]} 42. Nxc6 {[%clk
0:01:19.9]} 42... Rb3 {[%clk 0:00:29.9]} 43. Ne5 {[%clk 0:01:12.7]} 43... Rxa3
{[%clk 0:00:28.2]} 44. Rc7+ {[%clk 0:01:11.3]} 44... Kg8 {[%clk 0:00:28.4]} 45.
Ke7 {[%clk 0:01:10.2]} 45... Re3 {[%clk 0:00:23.8]} 46. f4 {[%clk 0:01:08.5]}
46... d4 {[%clk 0:00:22.8]} 47. Rc8 {[%clk 0:01:07.7]} 47... d3 {[%clk
0:00:21.8]} 48. Rxf8+ {[%clk 0:01:07.9]} 48... Kg7 {[%clk 0:00:22.1]} 49. Rf7+
{[%clk 0:01:03.9]} 49... Kg8 {[%clk 0:00:21]} 50. Kf6 {[%clk 0:01:03.3]} 50...
Rxg3 {[%clk 0:00:14.9]} 51. Nxg6 {[%clk 0:01:01.6]} 51... d2 {[%clk 0:00:12.8]}
52. Rg7# {[%clk 0:01:01.8]} 1-0

[Event "Early-Titled-Tuesday-Blitz-March-05-2024"]
[Site "Chess.com"]
[Date "2024.03.05"]
[Round "11"]
[White "Batica1984"]
[Black "GreenPeach24"]
[Result "1-0"]
[WhiteElo "2779"]
[BlackElo "2507"]
[TimeControl "180+1"]
[EndTime "10:09:03 PST"]
[Termination "Batica1984 won by checkmate"]

1. e4 {[%clk 0:03:00.9]} 1... c6 {[%clk 0:02:59.7]} 2. d4 {[%clk 0:03:00]} 2...
d5 {[%clk 0:02:59.6]} 3. e5 {[%clk 0:03:00.2]} 3... Bf5 {[%clk 0:02:59]} 4. h4
{[%clk 0:03:00]} 4... h6 {[%clk 0:02:54.8]} 5. g4 {[%clk 0:02:57.2]} 5... Bh7
{[%clk 0:02:54.8]} 6. e6 {[%clk 0:02:56]} 6... f5 {[%clk 0:02:18.4]} 7. Bd3
{[%clk 0:02:50.8]} 7... Nf6 {[%clk 0:02:17.9]} 8. gxf5 {[%clk 0:02:49]} 8... c5
{[%clk 0:02:15.3]} 9. Nf3 {[%clk 0:02:43.6]} 9... c4 {[%clk 0:02:13.3]} 10. Ne5
{[%clk 0:02:35.7]} 10... cxd3 {[%clk 0:02:12.1]} 11. Qxd3 {[%clk 0:02:34.9]}
11... Qc7 {[%clk 0:02:05.3]} 12. Nc3 {[%clk 0:02:33.5]} 12... Nc6 {[%clk
0:02:05]} 13. Bf4 {[%clk 0:02:32.2]} 13... Qb6 {[%clk 0:01:50.2]} 14. O-O-O
{[%clk 0:02:28.7]} 14... Rc8 {[%clk 0:01:43.2]} 15. a3 {[%clk 0:02:24.9]} 15...
a6 {[%clk 0:01:37.9]} 16. Na4 {[%clk 0:02:17.5]} 16... Qb5 {[%clk 0:01:32.3]}
17. Qxb5 {[%clk 0:02:17.1]} 17... axb5 {[%clk 0:01:32.2]} 18. Nb6 {[%clk
0:02:17.8]} 18... Rd8 {[%clk 0:01:17.8]} 19. Nf7 {[%clk 0:02:12]} 19... Rg8
{[%clk 0:01:17.5]} 20. Nxd8 {[%clk 0:02:06.3]} 20... Kxd8 {[%clk 0:01:17.5]} 21.
Rh3 {[%clk 0:01:46.2]} 21... Bxf5 {[%clk 0:01:11.5]} 22. Rb3 {[%clk 0:01:46]}
22... Bxe6 {[%clk 0:01:11]} 23. Rxb5 {[%clk 0:01:46.2]} 23... Bg4 {[%clk
0:01:08.8]} 24. Rd2 {[%clk 0:01:37.2]} 24... Ne4 {[%clk 0:01:07.2]} 25. Rxd5+
{[%clk 0:01:36]} 25... Ke8 {[%clk 0:01:04.7]} 26. Rd3 {[%clk 0:01:30.8]} 26...
e6 {[%clk 0:00:46.6]} 27. Rd7 {[%clk 0:01:30.1]} 27... Nxf2 {[%clk 0:00:37.6]}
28. Re3 {[%clk 0:01:26.6]} 28... e5 {[%clk 0:00:36.8]} 29. Rxb7 {[%clk
0:01:26.1]} 29... e4 {[%clk 0:00:31.8]} 30. Rc3 {[%clk 0:01:22.2]} 30... Nxd4
{[%clk 0:00:27.3]} 31. Rcc7 {[%clk 0:01:21.9]} 31... Ne6 {[%clk 0:00:14.6]} 32.
Rb8+ {[%clk 0:01:19.9]} 32... Nd8 {[%clk 0:00:14.7]} 33. a4 {[%clk 0:01:13.8]}
33... Be7 {[%clk 0:00:13.1]} 34. a5 {[%clk 0:01:13.1]} 34... g5 {[%clk
0:00:13.1]} 35. hxg5 {[%clk 0:01:12.2]} 35... hxg5 {[%clk 0:00:14]} 36. Bg3
{[%clk 0:01:12.1]} 36... e3 {[%clk 0:00:14]} 37. a6 {[%clk 0:01:11]} 37... Ne4
{[%clk 0:00:12.5]} 38. a7 {[%clk 0:01:07.5]} 38... Nxg3 {[%clk 0:00:09.1]} 39.
a8=Q {[%clk 0:01:07.6]} 39... e2 {[%clk 0:00:09.6]} 40. Rxd8+ {[%clk 0:01:03]}
40... Bxd8 {[%clk 0:00:09.4]} 41. Qc6+ {[%clk 0:01:02.7]} 41... Kf8 {[%clk
0:00:08.6]} 42. Qd6+ {[%clk 0:00:56.2]} 42... Ke8 {[%clk 0:00:08.6]} 43. Qe5+
{[%clk 0:00:54.6]} 43... Kf8 {[%clk 0:00:08.2]} 44. Nd7+ {[%clk 0:00:49.7]}
44... Bxd7 {[%clk 0:00:07.1]} 45. Rxd7 {[%clk 0:00:50.1]} 45... Ba5 {[%clk
0:00:02.5]} 46. Qe7# {[%clk 0:00:49.3]} 1-0

[Event "Early-Titled-Tuesday-Blitz-March-05-2024"]
[Site "Chess.com"]
[Date "2024.03.05"]
[Round "11"]
[White "vi_pranav"]
[Black "DeArron_Fox"]
[Result "1-0"]
[WhiteElo "3042"]
[BlackElo "2553"]
[TimeControl "180+1"]
[EndTime "10:09:06 PST"]
[Termination "vi_pranav won on time"]

1. e4 {[%clk 0:03:00.9]} 1... c5 {[%clk 0:02:59.8]} 2. Nf3 {[%clk 0:02:59.1]}
2... e6 {[%clk 0:03:00.3]} 3. b3 {[%clk 0:02:59.1]} 3... d6 {[%clk 0:02:57.9]}
4. Bb2 {[%clk 0:02:59.4]} 4... Nf6 {[%clk 0:02:58.1]} 5. Nc3 {[%clk 0:02:57.7]}
5... a6 {[%clk 0:02:55.7]} 6. d4 {[%clk 0:02:57.8]} 6... cxd4 {[%clk 0:02:55.7]}
7. Nxd4 {[%clk 0:02:58.7]} 7... Qc7 {[%clk 0:02:53.1]} 8. Bd3 {[%clk 0:02:58.6]}
8... Nbd7 {[%clk 0:02:50.4]} 9. O-O {[%clk 0:02:58.5]} 9... Be7 {[%clk
0:02:48.9]} 10. h3 {[%clk 0:02:57.7]} 10... O-O {[%clk 0:02:49.3]} 11. a4 {[%clk
0:02:58.2]} 11... b6 {[%clk 0:02:48.4]} 12. Re1 {[%clk 0:02:57.9]} 12... Bb7
{[%clk 0:02:47.9]} 13. Nce2 {[%clk 0:02:56]} 13... Nxe4 {[%clk 0:02:32.6]} 14.
Nf4 {[%clk 0:02:48.1]} 14... Ndc5 {[%clk 0:02:10.8]} 15. Bf1 {[%clk 0:02:30.8]}
15... Nf6 {[%clk 0:00:46.3]} 16. b4 {[%clk 0:02:26.8]} 16... Nce4 {[%clk
0:00:44.6]} 17. f3 {[%clk 0:01:52.8]} 17... Ng3 {[%clk 0:00:30.4]} 18. Nfxe6
{[%clk 0:01:40.1]} 18... fxe6 {[%clk 0:00:31.3]} 19. Nxe6 {[%clk 0:01:41]} 19...
Qd7 {[%clk 0:00:20.7]} 20. Nxf8 {[%clk 0:01:40.2]} 20... Rxf8 {[%clk 0:00:21.6]}
21. Qd4 {[%clk 0:01:40.1]} 21... Nxf1 {[%clk 0:00:17]} 22. Rxf1 {[%clk
0:01:39.8]} 22... Qc7 {[%clk 0:00:11.4]} 23. Rfe1 {[%clk 0:01:39.4]} 23... Ne8
{[%clk 0:00:06.6]} 24. Qg4 {[%clk 0:01:19.4]} 24... Bf6 {[%clk 0:00:06.8]} 25.
Rxe8 {[%clk 0:01:17.2]} 25... Rxe8 {[%clk 0:00:02.7]} 26. Bxf6 {[%clk
0:01:17.1]} 26... Qf7 {[%clk 0:00:02.3]} 27. Bd4 {[%clk 0:01:16.9]} 27... Re2
{[%clk 0:00:02.2]} 28. Bxb6 {[%clk 0:01:10]} 28... Rxc2 {[%clk 0:00:01.9]} 29.
Re1 {[%clk 0:01:10.1]} 29... h5 {[%clk 0:00:02.2]} 30. Qg5 {[%clk 0:01:09.7]}
30... Qf6 {[%clk 0:00:02]} 31. Qxh5 {[%clk 0:01:06.5]} 31... Bc6 {[%clk
0:00:02.6]} 32. b5 {[%clk 0:01:03.2]} 32... axb5 {[%clk 0:00:02.4]} 33. axb5
{[%clk 0:01:04.1]} 33... Bd7 {[%clk 0:00:02.6]} 34. Qd5+ {[%clk 0:01:02.5]}
34... Kh8 {[%clk 0:00:02.7]} 35. Bf2 {[%clk 0:00:49.5]} 35... Qb2 {[%clk
0:00:02.1]} 36. Qa8+ {[%clk 0:00:40.1]} 36... Kh7 {[%clk 0:00:01.8]} 37. Qe4+
{[%clk 0:00:40.8]} 37... Kh8 {[%clk 0:00:02]} 38. b6 {[%clk 0:00:39.6]} 1-0

[Event "Early-Titled-Tuesday-Blitz-March-05-2024"]
[Site "Chess.com"]
[Date "2024.03.05"]
[Round "11"]
[White "FuenfgegenWilly"]
[Black "WilsonPalencia21"]
[Result "1-0"]
[WhiteElo "2470"]
[BlackElo "2573"]
[TimeControl "180+1"]
[EndTime "10:09:11 PST"]
[Termination "FuenfgegenWilly won by resignation"]

1. e4 {[%clk 0:03:00.9]} 1... c5 {[%clk 0:02:59.5]} 2. Nc3 {[%clk 0:03:01.3]}
2... Nc6 {[%clk 0:02:59.5]} 3. f4 {[%clk 0:03:02.2]} 3... g6 {[%clk 0:02:59.7]}
4. Nf3 {[%clk 0:03:02.8]} 4... Bg7 {[%clk 0:03:00.2]} 5. Bb5 {[%clk 0:03:03.4]}
5... Nd4 {[%clk 0:03:00.6]} 6. O-O {[%clk 0:03:03.9]} 6... Nxb5 {[%clk
0:03:00.5]} 7. Nxb5 {[%clk 0:03:04.8]} 7... d6 {[%clk 0:03:01.1]} 8. d3 {[%clk
0:03:04.4]} 8... a6 {[%clk 0:03:01.1]} 9. Nc3 {[%clk 0:03:04.5]} 9... Nf6 {[%clk
0:02:59.5]} 10. Qe1 {[%clk 0:03:04.8]} 10... b5 {[%clk 0:02:59.6]} 11. Qh4
{[%clk 0:03:05]} 11... Bb7 {[%clk 0:02:57.6]} 12. Bd2 {[%clk 0:03:05.2]} 12...
Qd7 {[%clk 0:02:57.5]} 13. Rae1 {[%clk 0:03:04.9]} 13... b4 {[%clk 0:02:57]} 14.
Nd1 {[%clk 0:03:02.5]} 14... O-O-O {[%clk 0:02:52.3]} 15. Ne3 {[%clk 0:03:00.5]}
15... Kb8 {[%clk 0:02:47.7]} 16. Nc4 {[%clk 0:02:59.7]} 16... h6 {[%clk
0:02:33.5]} 17. e5 {[%clk 0:02:58.9]} 17... Nd5 {[%clk 0:02:30.9]} 18. Qg3
{[%clk 0:02:49.1]} 18... Ka7 {[%clk 0:02:26.8]} 19. Nh4 {[%clk 0:02:21.7]} 19...
Nb6 {[%clk 0:02:11.5]} 20. b3 {[%clk 0:02:06.1]} 20... Nxc4 {[%clk 0:02:08.5]}
21. bxc4 {[%clk 0:02:07]} 21... g5 {[%clk 0:02:06.3]} 22. fxg5 {[%clk 0:02:04]}
22... Bxe5 {[%clk 0:02:04]} 23. Rxe5 {[%clk 0:02:03.9]} 23... dxe5 {[%clk
0:02:03.2]} 24. Qxe5 {[%clk 0:02:04.5]} 24... hxg5 {[%clk 0:01:56.9]} 25. Qxc5+
{[%clk 0:02:02.7]} 25... Ka8 {[%clk 0:01:55.7]} 26. Be3 {[%clk 0:01:57.4]} 26...
Bc6 {[%clk 0:01:46.9]} 27. Rxf7 {[%clk 0:01:47.5]} 27... Rhe8 {[%clk 0:01:12.3]}
28. Ng6 {[%clk 0:01:37.7]} 28... Rc8 {[%clk 0:01:10.4]} 29. Ne5 {[%clk 0:01:35]}
29... Qb7 {[%clk 0:01:08]} 30. Nxc6 {[%clk 0:01:21.9]} 30... Rxc6 {[%clk
0:01:07.2]} 31. Qxg5 {[%clk 0:01:19.4]} 31... b3 {[%clk 0:00:57.9]} 32. axb3
{[%clk 0:01:11.7]} 32... Qb4 {[%clk 0:00:57.4]} 33. Bd2 {[%clk 0:00:48]} 33...
Qa3 {[%clk 0:00:46.1]} 34. Qd5 {[%clk 0:00:45.6]} 34... Rc8 {[%clk 0:00:42.4]}
35. Be3 {[%clk 0:00:37.6]} 35... Kb8 {[%clk 0:00:31]} 36. Qd4 {[%clk 0:00:34]}
36... R8c7 {[%clk 0:00:26.9]} 37. Bf4 {[%clk 0:00:29.4]} 37... e5 {[%clk
0:00:20.4]} 38. Qxe5 {[%clk 0:00:24.1]} 38... Ka8 {[%clk 0:00:11.8]} 39. Rxc7
{[%clk 0:00:21.4]} 39... Rxc7 {[%clk 0:00:12.4]} 40. Qxc7 {[%clk 0:00:21.2]}
40... Qa1+ {[%clk 0:00:13]} 41. Kf2 {[%clk 0:00:21.3]} 41... Qd4+ {[%clk
0:00:13.4]} 42. Be3 {[%clk 0:00:20.6]} 1-0

[Event "Early-Titled-Tuesday-Blitz-March-05-2024"]
[Site "Chess.com"]
[Date "2024.03.05"]
[Round "11"]
[White "bylavochka"]
[Black "Flaccidmoves"]
[Result "1-0"]
[WhiteElo "2359"]
[BlackElo "2452"]
[TimeControl "180+1"]
[EndTime "10:09:11 PST"]
[Termination "bylavochka won by checkmate"]

1. e4 {[%clk 0:03:00.9]} 1... e6 {[%clk 0:02:58.6]} 2. d4 {[%clk 0:03:00.4]}
2... d5 {[%clk 0:02:59.1]} 3. Nc3 {[%clk 0:02:58.5]} 3... Bb4 {[%clk 0:02:58.6]}
4. e5 {[%clk 0:02:58.5]} 4... c5 {[%clk 0:02:58.3]} 5. a3 {[%clk 0:02:58.3]}
5... Bxc3+ {[%clk 0:02:57.9]} 6. bxc3 {[%clk 0:02:59.2]} 6... Qc7 {[%clk
0:02:58.2]} 7. Qg4 {[%clk 0:02:58.7]} 7... Kf8 {[%clk 0:02:53.6]} 8. Ne2 {[%clk
0:02:51.7]} 8... Ne7 {[%clk 0:02:48.6]} 9. a4 {[%clk 0:02:08.1]} 9... h5 {[%clk
0:02:46]} 10. Qg5 {[%clk 0:02:06.2]} 10... b6 {[%clk 0:02:25.5]} 11. a5 {[%clk
0:01:18.8]} 11... bxa5 {[%clk 0:02:17]} 12. Ba3 {[%clk 0:01:15]} 12... c4 {[%clk
0:01:59.5]} 13. Ng3 {[%clk 0:01:08.3]} 13... h4 {[%clk 0:01:41.3]} 14. Nh5
{[%clk 0:01:05.8]} 14... Rh7 {[%clk 0:01:35.4]} 15. Be2 {[%clk 0:00:34.4]} 15...
Nc6 {[%clk 0:01:29]} 16. O-O {[%clk 0:00:27.8]} 16... h3 {[%clk 0:01:25.9]} 17.
gxh3 {[%clk 0:00:18]} 17... Rxh5 {[%clk 0:01:17.2]} 18. Bxh5 {[%clk 0:00:14.9]}
18... Kg8 {[%clk 0:01:16.7]} 19. Kh1 {[%clk 0:00:11.9]} 19... Nf5 {[%clk
0:01:15.6]} 20. Rg1 {[%clk 0:00:10.9]} 20... Bb7 {[%clk 0:00:55.6]} 21. Bg4
{[%clk 0:00:10]} 21... g6 {[%clk 0:00:50.3]} 22. Bxf5 {[%clk 0:00:08.7]} 22...
exf5 {[%clk 0:00:51.2]} 23. Qxf5 {[%clk 0:00:08.7]} 23... Re8 {[%clk 0:00:43.3]}
24. Rxg6+ {[%clk 0:00:01.4]} 24... fxg6 {[%clk 0:00:42.8]} 25. Qxg6+ {[%clk
0:00:02.3]} 25... Qg7 {[%clk 0:00:43.1]} 26. Qxe8+ {[%clk 0:00:02.4]} 26... Kh7
{[%clk 0:00:37.3]} 27. Qh5+ {[%clk 0:00:02.7]} 27... Qh6 {[%clk 0:00:33.3]} 28.
Qf5+ {[%clk 0:00:03]} 28... Kh8 {[%clk 0:00:23.7]} 29. Rg1 {[%clk 0:00:02.7]}
29... Nd8 {[%clk 0:00:19.5]} 30. Qd7 {[%clk 0:00:02.4]} 30... Ne6 {[%clk
0:00:09.2]} 31. Qe8+ {[%clk 0:00:02.9]} 31... Kh7 {[%clk 0:00:08.8]} 32. Qg8#
{[%clk 0:00:02.8]} 1-0